bitfinex/quotes_ETHUSD_20250123
["timestamp","ask_amount","ask_price","bid_price","bid_amount"]
[1737592652593,5.24,3256.1,3256.0,4.50146657]
[1737592652793,5.24,3256.1,3256.0,1.43021657]
[1737592653697,5.24,3256.1,3256.0,4.50146657]
[1737592654925,5.24,3256.5,3256.4,3.62087]
[1737592655093,3.06901,3258.4,3256.4,3.62087]
[1737592655094,3.06939,3258.0,3257.3,0.8459]
[1737592655494,0.8088,3258.1,3257.4,0.06829395]
[1737592655701,3.06955,3257.8,3257.4,0.06829395]
[1737592656555,3.06955,3257.8,3257.4,0.18891712]
[1737592657103,3.06957,3257.8,3257.4,0.18891712]
[1737592657695,3.06967,3257.7,3257.4,0.18891712]
[1737592658154,3.87863,3257.5,3257.4,0.18891712]
[1737592658434,3.07015,3257.2,3256.8,0.8459]
[1737592658703,3.07021,3257.1,3256.5,0.8459]
[1737592658923,3.01735188,3257.1,3256.9,0.06767423]
[1737592659124,3.01735188,3257.1,3256.2,5.94001899]
[1737592659125,3.07056,3256.8,3256.2,3.91693]
[1737592659326,8.91,3256.7,3256.2,4.65560294]
[1737592659637,11.98059,3256.7,3256.6,0.12050688]
[1737592660639,11.98059,3256.7,3256.3,0.12050688]
[1737592662415,8.91,3256.7,3256.4,3.07078]
[1737592662605,8.91,3256.7,3256.6,0.8459]
[1737592662938,8.91,3257.1,3256.6,1.237558]
[1737592663236,8.91,3257.1,3256.6,1.35806488]
[1737592663406,8.91,3257.1,3256.6,4.42873488]
[1737592664821,8.91,3257.1,3256.7,0.12050688]
[1737592664822,11.98023,3257.1,3256.7,0.12050688]
[1737592665528,3.07035,3257.0,3256.8,0.0673222]
[1737592666060,3.07035,3257.0,3256.9,0.06730119]
[1737592666422,3.07035,3257.0,3256.6,0.8459]
[1737592666623,3.07035,3257.0,3256.9,0.06739047]
[1737592666954,3.07035,3257.0,3256.6,0.8459]
[1737592667143,3.07035,3257.0,3256.9,0.06739047]
[1737592667366,3.07035,3257.0,3256.2,0.8459]
[1737592667367,0.8088,3256.9,3256.2,0.8459]
[1737592667520,3.07076,3256.6,3256.2,0.8459]
[1737592667723,11.9808,3256.5,3256.3,0.06739572]
[1737592668650,8.91,3256.5,3256.3,0.06739572]
[1737592669261,8.91,3256.5,3256.3,0.18798678]
[1737592673662,8.91,3256.5,3256.4,0.12059106]
[1737592674025,8.91,3256.5,3256.4,0.18810232]
[1737592674567,8.91,3256.5,3256.4,4.49327655]
[1737592674886,8.91,3256.5,3256.4,1.42240655]
[1737592675222,8.91,3256.5,3256.4,36.42240655]
[1737592677665,8.91,3256.8,3256.4,36.42240655]
[1737592678725,8.91,3256.8,3256.4,1.42240655]
[1737592678945,11.98055,3256.8,3256.5,0.12059106]
[1737592679270,11.98068,3256.6,3256.5,0.12059106]
[1737592679449,12.77278,3256.6,3256.5,0.12059106]
[1737592679862,11.98068,3256.6,3256.5,0.12059106]
[1737592680569,11.98068,3256.6,3256.5,0.18830189]
[1737592681271,8.91,3256.6,3256.5,0.18830189]
[1737592683570,8.91,3257.0,3256.5,4.11412751]
[1737592683734,3.07041,3256.9,3256.5,4.11412751]
[1737592684253,8.91,3257.0,3256.6,0.12059106]
[1737592684463,11.98032,3257.0,3256.6,0.12059106]
[1737592684660,11.98032,3257.0,3256.7,0.06770032]
[1737592684861,8.91,3256.9,3256.7,0.06770032]
[1737592685684,8.91,3256.9,3256.8,0.12059106]
[1737592685967,11.97959,3257.8,3256.9,0.7847]
[1737592686190,8.91,3257.8,3257.3,0.7847]
[1737592686738,11.97959,3257.8,3257.3,0.7847]
[1737592686965,11.97959,3257.8,3257.4,0.06761106]
[1737592687285,11.97959,3257.8,3257.4,0.18820212]
[1737592687974,11.97956,3257.8,3257.4,0.18820212]
[1737592688682,8.91,3257.7,3257.5,0.12059106]
[1737592689360,8.91,3257.7,3257.6,0.06761106]
[1737592690285,8.91,3257.7,3257.6,0.18820212]
[1737592696907,12.79005,3257.7,3257.6,0.18820212]
[1737592697088,13.988011,3257.7,3257.6,0.18820212]
[1737592697296,13.988011,3257.7,3257.6,0.12059106]
[1737592697610,22.228011,3257.7,3257.6,1.06e-06]
[1737592698569,8.91,3256.5,3256.1,38.96306898]
[1737592698771,8.91,3256.5,3256.2,3.16702145]
[1737592699007,8.91,3256.3,3256.2,3.16702145]
[1737592699175,8.91,3256.3,3256.2,0.06499583]
[1737592699501,11.98097,3256.3,3256.2,0.06499583]
[1737592700008,3.07106,3256.2,3256.1,3.17836898]
[1737592700308,12.81236,3256.2,3256.1,3.17836898]
[1737592701108,12.81236,3256.2,3255.5,38.84271]
[1737592701318,3.07116,3256.1,3255.6,3.10202562]
[1737592702979,3.07116,3256.1,3255.5,3.84271]
[1737592703379,3.07116,3256.1,3255.6,35.0]
[1737592704513,8.91,3256.0,3255.7,3.07147]
[1737592704817,8.91,3256.0,3255.9,3.07134]
[1737592705214,8.91,3256.0,3255.9,38.07134]
[1737592705418,8.91,3256.0,3255.9,41.17336562]
[1737592705621,8.91,3256.0,3255.9,41.626626]
[1737592706315,8.91,3256.0,3255.9,38.555286]
[1737592706508,8.91,3256.0,3255.9,35.45326038]
[1737592707625,8.91,3256.0,3255.9,35.64606326]
[1737592710335,8.91,3256.2,3255.9,35.64606326]
[1737592710489,8.91,3256.2,3255.9,35.71178383]
[1737592710687,8.91,3256.2,3255.9,35.83220377]
[1737592710912,8.91,3256.2,3256.0,0.45326038]
[1737592711521,8.91,3256.2,3256.1,0.06572057]
[1737592712221,8.91,3256.2,3256.1,0.37894339]
[1737592712424,8.91,3256.2,3256.1,0.83220377]
[1737592713525,14.010458,3256.2,3256.1,0.83220377]
[1737592713916,14.010458,3256.2,3256.1,0.7664832]
[1737592714116,14.010458,3256.2,3256.1,0.12041994]
[1737592715501,3.07125,3256.0,3255.9,0.12041994]
[1737592716260,11.98125,3256.0,3255.9,0.12041994]
[1737592717200,11.98125,3256.0,3255.9,0.18654502]
[1737592719822,14.394611,3256.0,3255.9,0.18654502]
[1737592720082,14.394611,3256.0,3255.9,0.12041994]
[1737592721091,11.98144,3255.8,3255.7,0.12041994]
[1737592721569,12.80644,3255.8,3255.7,0.12041994]
[1737592721770,12.80644,3255.8,3255.7,0.18681303]
[1737592722907,11.98144,3255.8,3255.7,0.18681303]
[1737592727286,8.91,3255.8,3255.7,0.18681303]
[1737592727476,5.24,3256.9,3255.7,0.18681303]
[1737592727477,8.91,3256.1,3255.8,3.07141]
[1737592727679,8.91,3256.1,3255.9,3.44246312]
[1737592727903,8.91,3256.1,3255.9,3.50888249]
[1737592728915,8.91,3256.1,3255.9,38.50888249]
[1737592729409,8.91,3256.1,3256.0,0.45320816]
[1737592729610,8.91,3256.1,3256.0,4.51001018]
[1737592731099,1.7910918,3256.3,3256.0,4.51001018]
[1737592731279,8.91,3256.4,3256.0,4.51001018]
[1737592731687,8.91,3256.4,3256.1,0.45320816]
[1737592731910,8.91,3256.4,3256.1,0.5736281]
[1737592732225,8.91,3256.4,3256.2,0.43024885]
[1737592733101,8.91,3256.4,3256.3,0.5736281]
[1737592733682,8.91,3256.4,3256.3,0.63971639]
[1737592735824,8.91,3256.4,3256.3,0.18650823]
[1737592742951,8.91,3256.5,3256.3,0.18650823]
[1737592743617,8.91,3256.5,3256.3,0.51227405]
[1737592744537,3.07062,3256.7,3256.3,0.51227405]
[1737592744538,8.91,3256.7,3256.6,3.07068]
[1737592744739,8.91,3257.5,3257.1,3.07021]
[1737592744938,8.91,3257.7,3257.3,3.88179]
[1737592745149,8.91,3257.7,3257.4,3.06987]
[1737592745354,0.03331391,3258.5,3257.8,3.06949]
[1737592745355,8.91,3258.1,3257.8,3.06949]
[1737592745658,8.91,3258.1,3257.5,3.06983]
[1737592745948,8.91,3258.1,3257.7,3.06962]
[1737592746156,8.91,3258.1,3257.9,0.12041994]
[1737592746659,8.91,3258.1,3258.0,0.06506417]
[1737592747166,8.91,3258.1,3258.0,0.18548411]
[1737592748953,8.91,3258.2,3258.0,0.06506417]
[1737592749257,8.91,3258.2,3257.8,0.12041994]
[1737592749424,8.91,3258.2,3257.9,0.06506417]
[1737592750634,8.91,3258.2,3257.9,0.18540088]
[1737592754859,11.97911,3258.3,3257.9,0.18540088]
[1737592756222,8.91,3258.3,3258.0,0.8295]
[1737592756417,8.91,3258.4,3258.1,0.06426084]
[1737592756653,11.97905,3258.4,3258.1,0.06426084]
[1737592756828,3.06917,3258.2,3258.1,0.06426084]
[1737592757035,3.06936,3258.0,3257.9,0.12033671]
[1737592757356,3.06993,3257.4,3256.9,3.89989]
[1737592757718,3.06993,3257.4,3257.0,0.06410863]
[1737592758126,8.91,3257.1,3257.0,0.06410863]
[1737592758324,11.98021,3257.1,3257.0,0.06410863]
[1737592758524,3.07058,3256.8,3256.3,0.8295]
[1737592758725,11.98037,3257.0,3256.4,0.36984078]
[1737592758961,11.98037,3257.0,3256.4,3.44070078]
[1737592759157,8.91,3257.0,3256.8,2.86890785]
[1737592759458,8.91,3257.0,3256.9,3.8798]
[1737592760028,8.91,3257.0,3256.9,4.61833129]
[1737592760338,8.91,3257.0,3256.9,5.6741062]
[1737592761761,8.91,3257.0,3256.9,1.98539949]
[1737592762660,8.91,3257.0,3256.9,0.12022458]
[1737592762827,11.98031,3257.0,3256.9,0.12022458]
[1737592763458,11.98031,3257.0,3256.4,0.36984078]
[1737592763459,3.07047,3256.9,3256.6,0.12022458]
[1737592763635,11.98031,3257.0,3256.6,0.12022458]
[1737592763827,8.91,3256.9,3256.6,0.12022458]
[1737592764027,8.91,3256.9,3256.7,0.29891324]
[1737592764557,8.91,3256.9,3256.8,0.12022458]
[1737592769663,8.91,3256.9,3256.8,6.86902243]
[1737592769966,8.91,3257.3,3256.8,6.86902243]
[1737592770330,11.98003,3257.3,3256.9,0.06033834]
[1737592770560,11.98003,3257.3,3256.9,0.47611674]
[1737592771048,8.91,3257.2,3257.0,0.12022458]
[1737592771455,8.91,3257.2,3257.1,0.06033834]
[1737592772090,12.74932,3257.2,3257.1,0.06033834]
[1737592772534,3.07042,3256.9,3256.2,3.67830785]
[1737592772734,3.07064,3256.7,3256.2,4.35325264]
[1737592772971,3.07064,3256.7,3256.3,0.06072154]
[1737592774372,3.07064,3256.7,3256.4,0.12061826]
[1737592774869,3.07064,3256.7,3256.5,0.06092633]
[1737592775370,3.07068,3256.6,3256.5,0.18154459]
[1737592775734,11.98068,3256.6,3256.5,0.18154459]
[1737592776371,11.98068,3256.6,3256.5,0.12061826]
[1737592776576,8.91,3256.6,3256.5,0.12061826]
[1737592776892,8.91,3256.6,3256.5,0.18154459]
[1737592777267,11.98068,3256.6,3256.5,0.18154459]
[1737592777700,8.91,3256.6,3256.5,0.18154459]
[1737592782822,11.98068,3256.6,3256.5,0.18154459]
[1737592784338,8.91,3256.6,3256.5,0.18154459]
[1737592785994,9.7287,3256.6,3256.5,0.18154459]
[1737592786325,12.79938,3256.6,3256.5,0.18154459]
[1737592786532,9.7287,3256.6,3256.5,0.18154459]
[1737592792737,14.079311,3256.6,3256.5,0.18154459]
[1737592793232,14.079311,3256.6,3256.5,0.12061826]
[1737592795335,9.7287,3256.6,3256.5,0.12061826]
[1737592795506,8.91,3256.6,3256.2,3.07104]
[1737592795708,8.91,3256.6,3256.5,0.05953504]
[1737592795908,8.91,3256.6,3256.2,3.07104]
[1737592796241,8.91,3256.6,3256.5,0.05953504]
[1737592796449,8.91,3256.6,3256.3,3.10202562]
[1737592796652,8.91,3256.6,3256.5,0.05953504]
[1737592797110,8.91,3256.6,3256.2,3.07104]
[1737592797313,8.91,3256.6,3256.5,0.05953504]
[1737592797636,8.91,3256.6,3256.2,3.07104]
[1737592797854,8.91,3256.6,3256.5,0.05953504]
[1737592798140,8.91,3256.6,3255.6,4.27929126]
[1737592798141,8.91,3256.2,3255.6,4.27929126]
[1737592798338,9.7287,3256.2,3255.6,4.27929126]
[1737592798640,12.79978,3256.2,3255.6,4.27929126]
[1737592798949,11.98117,3256.1,3255.6,1.20773126]
[1737592799359,11.98117,3256.1,3255.6,36.20773126]
[1737592799565,11.98117,3256.1,3255.6,39.30975688]
[1737592799934,8.91,3256.1,3255.6,42.38136688]
[1737592800262,8.91,3256.1,3255.9,3.07134]
[1737592800468,8.91,3256.4,3256.0,0.7913]
[1737592800770,8.91,3256.4,3256.1,0.386264]
[1737592800981,11.9809,3256.4,3256.1,35.386264]
[1737592801264,8.91,3256.4,3256.2,0.05968738]
[1737592801817,8.91,3256.4,3256.3,35.0]
[1737592802363,8.91,3256.4,3256.3,0.05961383]
[1737592802572,8.91,3256.4,3256.1,0.386264]
[1737592802739,8.91,3256.4,3256.3,0.05961383]
[1737592802935,8.91,3256.4,3256.1,35.386264]
[1737592803252,8.91,3256.4,3256.3,0.05961383]
[1737592803559,11.98087,3256.4,3256.3,0.05961383]
[1737592803761,11.98087,3256.4,3255.5,2.86890785]
[1737592803762,3.07111,3256.2,3255.6,4.27934126]
[1737592803918,3.07111,3256.2,3255.7,3.07152]
[1737592804119,12.79957,3256.4,3255.8,5.94033785]
[1737592804315,8.91,3256.4,3255.9,0.7789]
[1737592804516,8.91,3256.4,3256.0,3.07124]
[1737592804834,8.91,3256.4,3256.1,0.39097328]
[1737592805271,3.07097,3256.3,3256.2,0.05959282]
[1737592805414,8.91,3256.3,3256.2,0.05959282]
[1737592805619,11.98097,3256.3,3255.8,2.86890785]
[1737592805820,12.75447,3256.3,3256.2,0.05959282]
[1737592806120,9.6835,3256.3,3256.2,0.05958231]
[1737592806334,8.91,3256.3,3256.2,0.05958231]
[1737592806756,8.91,3256.3,3255.8,5.94027785]
[1737592806963,11.98099,3256.3,3256.2,0.05958231]
[1737592807258,11.98099,3256.3,3255.8,2.86890785]
[1737592807463,11.98099,3256.3,3256.2,0.05962959]
[1737592807762,8.91,3256.3,3256.2,0.05962959]
[1737592807965,8.91,3256.3,3255.8,5.94032785]
[1737592808162,11.98098,3256.3,3256.2,0.05962959]
[1737592808318,11.98098,3256.3,3255.8,2.86890785]
[1737592808516,11.98098,3256.3,3255.9,0.05962959]
[1737592808720,3.07111,3256.2,3255.9,0.05962959]
[1737592809168,3.07111,3256.2,3255.6,40.05824126]
[1737592809336,3.07111,3256.2,3256.0,0.05969789]
[1737592809538,3.07111,3256.2,3255.7,3.10202562]
[1737592809864,3.07111,3256.2,3256.1,0.05969789]
[1737592810068,3.07153,3255.7,3255.6,1.20773126]
[1737592810217,3.07135,3255.9,3255.6,1.20773126]
[1737592810655,3.07145,3255.8,3255.6,1.20773126]
[1737592812070,3.07145,3255.8,3255.7,0.12085369]
[1737592812250,3.84495,3255.8,3255.7,0.12085369]
[1737592813540,13.753711,3255.8,3255.7,0.12085369]
[1737592816434,8.91,3254.9,3254.7,0.12085369]
[1737592816831,8.91,3254.9,3254.8,0.06030224]
[1737592817169,8.91,3254.9,3254.7,0.12085369]
[1737592817333,8.91,3254.9,3254.8,0.06039687]
[1737592817534,8.91,3254.9,3254.7,0.12085369]
[1737592817868,11.98229,3254.9,3254.8,0.06039687]
[1737592818260,3.07238,3254.8,3254.3,2.86890785]
[1737592818458,3.07238,3254.8,3254.4,0.28689078]
[1737592819366,3.07248,3254.7,3254.4,0.28689078]
[1737592819570,3.07248,3254.7,3254.5,0.12070804]
[1737592820261,8.91,3254.6,3254.5,0.12070804]
[1737592822378,7.62946594,3254.6,3254.5,35.12070804]
[1737592822584,7.62946594,3254.6,3254.5,38.22273366]
[1737592823274,7.62946594,3254.6,3254.5,35.12070804]
[1737592827555,7.62946594,3254.6,3254.5,0.12070804]
[1737592828294,10.70203594,3254.6,3254.5,0.12070804]
[1737592828595,7.62946594,3254.6,3254.5,0.12070804]
[1737592830457,7.62946594,3254.6,3254.5,0.1817725]
[1737592832288,7.62946594,3254.6,3254.5,0.21294851]
[1737592832651,10.70203594,3254.6,3254.5,0.21294851]
[1737592833154,7.62946594,3254.6,3254.5,0.21294851]
[1737592834593,7.62946594,3254.6,3254.5,0.52113415]
[1737592834756,7.62946594,3254.6,3254.5,0.21294851]
[1737592836406,10.70203594,3254.6,3254.5,0.21294851]
[1737592836627,7.62946594,3254.6,3254.5,0.21294851]
[1737592840420,10.70203594,3254.6,3254.5,0.21294851]
[1737592840720,7.62946594,3254.6,3254.5,0.21294851]
[1737592841516,7.62946594,3254.6,3254.5,4.05880851]
[1737592841689,7.62946594,3254.6,3254.5,4.75158015]
[1737592847092,7.62946594,3255.0,3254.5,4.75158015]
[1737592847592,7.62946594,3255.0,3254.6,0.12070804]
[1737592847791,7.62946594,3255.0,3254.6,6.15445318]
[1737592848299,7.62946594,3255.0,3254.6,3.08189318]
[1737592848612,7.62946594,3255.0,3254.7,0.76205248]
[1737592848993,7.62946594,3255.0,3254.8,0.09227729]
[1737592849224,7.62946594,3255.0,3254.7,0.88276052]
[1737592849530,7.62946594,3255.0,3254.9,0.09227729]
[1737592849698,7.62946594,3255.0,3254.7,0.88276052]
[1737592850028,7.62946594,3255.0,3254.8,0.68242084]
[1737592850251,7.62946594,3255.0,3254.9,0.12070804]
[1737592850743,7.62946594,3255.0,3254.9,0.21298533]
[1737592852240,7.62946594,3255.0,3254.9,6.95838318]
[1737592853433,7.62946594,3255.0,3254.9,3.88609318]
[1737592853637,7.62946594,3255.0,3254.9,7.41523458]
[1737592854530,7.62946594,3255.0,3254.9,6.61103458]
[1737592856030,7.62946594,3255.3,3254.9,6.61103458]
[1737592856744,8.43796594,3255.3,3254.9,6.61103458]
[1737592856935,8.43796594,3255.3,3255.0,0.12070804]
[1737592857134,7.62946594,3255.8,3255.4,0.55]
[1737592857339,7.62946594,3255.8,3255.7,6.77003785]
[1737592857960,7.62946594,3255.8,3255.7,6.86231514]
[1737592858146,7.62946594,3255.8,3255.7,6.98302318]
[1737592858333,7.62946594,3255.8,3255.7,7.9884885]
[1737592860682,7.62946594,3255.8,3255.7,8.82205899]
[1737592860988,5.24,3255.8,3255.7,8.82205899]
[1737592863485,3.96016346,3255.8,3255.7,8.82205899]
[1737592868810,3.96016346,3256.3,3255.7,11.82205899]
[1737592869037,7.62946594,3256.4,3256.3,3.62097]
[1737592869311,3.06986,3257.5,3256.3,3.62097]
[1737592869312,7.62946594,3257.1,3256.8,3.07046]
[1737592869493,7.62946594,3257.1,3256.8,5.93936785]
[1737592869699,7.62946594,3257.1,3256.9,0.09051667]
[1737592870806,7.62946594,3257.1,3256.9,0.21122471]
[1737592870976,7.62946594,3257.1,3256.9,0.4947952]
[1737592872277,7.62946594,3257.1,3257.0,0.40427853]
[1737592872491,7.62946594,3257.1,3257.0,0.493781]
[1737592879511,7.62946594,3257.3,3257.0,4.20740789]
[1737592879889,7.62946594,3257.3,3257.1,3.07018]
[1737592880101,7.62946594,3257.3,3257.1,3.15957745]
[1737592880343,7.62946594,3257.3,3257.1,3.44314794]
[1737592880625,7.62946594,3257.3,3257.1,4.29160427]
[1737592880924,7.62946594,3257.3,3257.1,7.16051212]
[1737592881610,7.62946594,3257.3,3257.2,0.12070804]
[1737592881812,7.62946594,3257.3,3257.2,0.40427853]
[1737592882142,7.62946594,3257.3,3257.2,0.49367598]
[1737592882302,7.62946594,3257.3,3257.2,1.33698201]
[1737592882701,7.62946594,3257.6,3257.2,1.33698201]
[1737592884003,7.62946594,3257.6,3257.3,0.28357049]
[1737592884204,7.62946594,3257.6,3257.3,0.37244818]
[1737592885014,7.62946594,3257.5,3257.4,0.12070804]
[1737592885215,7.62946594,3258.0,3257.5,0.55]
[1737592885539,7.62946594,3258.0,3257.8,3.06946]
[1737592885745,7.62946594,3258.0,3257.9,3.06946]
[1737592885900,7.62946594,3258.0,3257.9,3.15837443]
[1737592886637,7.62946594,3258.0,3257.9,3.27908247]
[1737592886941,7.62946594,3258.0,3257.9,3.56265296]
[1737592887105,7.62946594,3258.0,3257.9,4.59040504]
[1737592888430,0.0224801,3258.1,3258.0,3.06936]
[1737592888612,0.0224801,3258.1,3258.0,6.48826785]
[1737592888817,0.0224801,3258.1,3258.0,6.57629437]
[1737592889650,0.0224801,3258.1,3258.0,7.35279437]
[1737592889969,0.0224801,3258.1,3258.0,1.74002806]
[1737592890252,0.0224801,3258.1,3258.0,0.49230505]
[1737592893028,11.54401604,3258.1,3258.0,0.49230505]
[1737592893222,11.54401604,3258.1,3258.0,0.40427853]
[1737592893632,14.54401604,3258.1,3258.0,0.40427853]
[1737592894133,14.54401604,3258.1,3258.0,0.12070804]
[1737592894326,16.28285654,3258.1,3258.0,0.12070804]
[1737592894918,7.62946594,3258.0,3256.7,0.12070804]
[1737592895118,11.52246594,3257.2,3256.7,0.12070804]
[1737592895379,11.52246594,3257.2,3256.8,0.08786912]
[1737592895755,11.52246594,3257.2,3256.8,0.283132]
[1737592896060,11.52246594,3257.2,3256.9,0.08786912]
[1737592896582,3.07024,3257.1,3256.9,0.08786912]
[1737592896757,3.07024,3257.1,3256.9,0.20857716]
[1737592896962,3.07031,3257.0,3256.9,0.20857716]
[1737592897157,3.85051,3257.0,3256.9,0.20857716]
[1737592897361,3.85051,3257.0,3256.9,0.12070804]
[1737592898338,3.07048,3256.9,3256.2,6.67502927]
[1737592898673,3.07051,3256.8,3256.3,0.7562801]
[1737592899770,3.07051,3256.8,3256.4,0.12070804]
[1737592900075,10.70011594,3256.7,3256.4,0.12070804]
[1737592900288,10.70011594,3256.7,3256.5,0.08877717]
[1737592900589,7.62946594,3256.7,3256.5,0.08877717]
[1737592900879,7.62946594,3256.7,3256.6,0.7515]
[1737592901082,0.00715001,3257.0,3256.6,1.3015]
[1737592901239,0.00715001,3257.0,3256.7,3.80676659]
[1737592901539,0.00715001,3257.0,3256.9,3.0704]
[1737592901741,0.00715001,3257.0,3256.9,3.8219]
[1737592901965,0.00715001,3257.0,3256.9,4.40260101]
[1737592902149,0.00715001,3257.0,3256.9,4.4608032]
[1737592902350,0.00715001,3257.0,3256.9,5.57445096]
[1737592902574,0.00715001,3257.0,3256.9,5.695159]
[1737592902744,0.00715001,3257.0,3256.9,5.7258574]
[1737592903190,0.00715001,3257.0,3256.9,8.7258574]
[1737592903483,0.00715001,3257.0,3256.9,8.695159]
[1737592904696,10.69882594,3258.0,3257.4,0.55]
[1737592904857,10.69882594,3258.0,3257.4,0.911998]
[1737592905058,10.69882594,3258.0,3257.5,0.08863541]
[1737592906168,7.62946594,3257.9,3257.6,0.12070804]
[1737592906577,7.62946594,3257.9,3257.6,3.19043804]
[1737592906781,7.62946594,3257.9,3257.7,0.71409128]
[1737592907692,7.62946594,3257.9,3257.8,0.12070804]
[1737592908102,7.62946594,3257.9,3257.8,0.20867156]
[1737592909598,10.69875594,3258.1,3257.8,0.20867156]
[1737592910607,7.62946594,3258.1,3257.8,0.20867156]
[1737592910895,7.62946594,3258.1,3257.9,0.12070804]
[1737592911260,7.62946594,3258.1,3258.0,0.08796352]
[1737592911809,7.62946594,3258.1,3258.0,0.20867156]
[1737592912210,7.62946594,3258.1,3258.0,35.20867156]
[1737592913005,7.62946594,3258.1,3258.0,0.20867156]
[1737592914913,10.69873594,3258.1,3258.0,0.20867156]
[1737592915116,12.97054553,3258.1,3258.0,0.12070804]
[1737592916789,12.97054553,3258.1,3256.9,35.0]
[1737592916790,3.88686,3257.5,3256.9,35.12070804]
[1737592917117,0.817,3257.5,3257.0,0.08792154]
[1737592917421,10.69940594,3257.4,3257.0,0.08792154]
[1737592917916,10.69940594,3257.4,3257.1,0.12070804]
[1737592918312,10.69940594,3257.4,3257.2,0.08792154]
[1737592919629,7.62946594,3257.4,3257.2,0.20862958]
[1737592920409,7.62946594,3257.4,3257.2,3.27873958]
[1737592920905,7.62946594,3257.4,3257.2,0.20862958]
[1737592921228,7.62946594,3257.4,3257.3,0.12070804]
[1737592921433,7.62946594,3257.4,3257.3,0.20889728]
[1737592921734,11.51639594,3257.4,3257.3,0.20889728]
[1737592923128,12.97501953,3257.4,3257.3,0.20889728]
[1737592924193,12.97501953,3257.4,3256.4,0.811]
[1737592924194,9.90508953,3257.4,3257.0,0.12070804]
[1737592924394,3.86941,3257.1,3257.0,0.12070804]
[1737592924633,3.86941,3257.1,3257.0,0.20889728]
[1737592924930,11.49887594,3257.1,3257.0,0.20889728]
[1737592925132,12.95577453,3257.1,3257.0,0.20889728]
[1737592925494,12.95577453,3257.1,3255.9,5.94019785]
[1737592925495,10.70014594,3256.6,3256.5,0.12070804]
[1737592925695,11.49934594,3256.6,3256.5,0.12070804]
[1737592925924,11.49934594,3256.6,3256.5,0.20889728]
[1737592926130,7.62946594,3256.6,3256.5,0.20889728]
[1737592926631,7.62946594,3256.6,3256.5,0.53687401]
[1737592926855,7.62946594,3256.6,3256.5,0.20889728]
[1737592927016,11.49934594,3256.6,3256.5,0.20889728]
[1737592927812,11.49934594,3256.6,3256.5,0.12070804]
[1737592928533,3.07109,3256.2,3256.0,0.12070804]
[1737592928931,13.77093594,3256.6,3256.1,0.08888745]
[1737592929250,10.70017594,3256.6,3256.1,0.08888745]
[1737592929567,3.07094,3256.4,3256.1,0.08888745]
[1737592930066,3.07094,3256.4,3256.2,0.12070804]
[1737592930246,3.07094,3256.4,3256.2,0.20978458]
[1737592930436,10.70017594,3256.6,3256.2,0.20978458]
[1737592930625,3.07097,3256.3,3256.2,0.20978458]
[1737592931055,6.14164,3256.5,3256.2,0.20978458]
[1737592931564,3.07088,3256.4,3256.2,0.20978458]
[1737592931870,3.0708,3256.5,3256.2,0.08907654]
[1737592932168,3.0708,3256.5,3256.0,0.12070804]
[1737592932364,3.07087,3256.4,3256.3,0.08907654]
[1737592932527,3.07106,3256.2,3256.0,0.12070804]
[1737592933037,3.07087,3256.4,3256.0,0.12070804]
[1737592933364,7.62946594,3256.3,3256.0,3.22273366]
[1737592933749,10.70044594,3256.3,3256.0,3.22273366]
[1737592933921,10.70044594,3256.3,3256.1,0.12070804]
[1737592935352,10.70044594,3256.3,3256.0,0.12070804]
[1737592935553,10.70044594,3256.3,3256.2,0.08955444]
[1737592935736,10.70044594,3256.3,3256.0,0.12070804]
[1737592936071,7.62946594,3256.3,3256.0,0.12070804]
[1737592936230,10.70049594,3256.3,3256.1,0.08955444]
[1737592939192,7.62946594,3256.2,3256.1,0.08955444]
[1737592940746,11.48852594,3256.2,3256.1,0.08955444]
[1737592941339,12.94448153,3256.2,3256.1,0.08955444]
[1737592941652,3.07115,3256.1,3256.0,0.12070804]
[1737592941858,3.85915,3256.1,3256.0,0.12070804]
[1737592943699,14.48861594,3256.1,3256.0,8.04e-06]
[1737592944354,18.4487794,3256.1,3256.0,8.04e-06]
[1737592944556,21.34035268,3256.1,3256.0,8.04e-06]
[1737592945286,21.34035268,3256.1,3254.6,35.0]
[1737592945287,7.62946594,3255.0,3254.6,35.0]
[1737592945520,7.62946594,3254.8,3254.6,35.0]
[1737592945838,7.62946594,3254.7,3254.5,0.7506]
[1737592946093,7.62946594,3254.6,3254.2,1.35934533]
[1737592946389,7.62946594,3254.5,3254.3,35.0]
[1737592947482,3.07295,3254.2,3253.6,3.07347]
[1737592947652,7.62946594,3254.0,3253.6,0.7506]
[1737592947842,7.62946594,3254.0,3253.6,35.7506]
[1737592948042,3.07323,3253.9,3253.6,35.0]
[1737592948349,7.62946594,3254.0,3253.6,35.0]
[1737592948560,10.70266594,3254.0,3253.7,0.55]
[1737592948759,10.70266594,3254.0,3253.6,35.0]
[1737592949197,3.07323,3253.9,3253.7,0.55]
[1737592950296,3.07323,3253.9,3253.8,0.63664223]
[1737592950659,10.70269594,3253.9,3253.8,0.63664223]
[1737592950860,12.15907753,3253.9,3253.8,0.08664223]
[1737592951189,3.07351,3253.6,3252.9,2.86890785]
[1737592951361,7.62946594,3253.4,3253.1,35.55]
[1737592951561,7.62946594,3253.4,3253.1,35.63664223]
[1737592951804,3.07362,3253.5,3253.1,35.63664223]
[1737592951805,7.62946594,3253.3,3253.1,38.73866785]
[1737592952014,7.62946594,3253.2,3253.1,38.18866785]
[1737592952702,7.62946594,3253.2,3253.1,38.73866785]
[1737592953397,7.62946594,3253.2,3253.1,35.63664223]
[1737592954519,7.62946594,3253.2,3253.1,0.63664223]
[1737592955231,7.62946594,3253.2,3253.1,38.71063223]
[1737592956279,7.62946594,3253.2,3253.1,35.63664223]
[1737592956480,7.62946594,3253.2,3253.1,35.75606454]
[1737592957078,11.5896294,3253.2,3253.1,35.20606454]
[1737592957278,14.6635194,3253.2,3253.1,35.75606454]
[1737592957478,14.6635194,3253.2,3253.1,0.75606454]
[1737592958708,14.6635194,3253.2,3253.1,0.63664223]
[1737592959494,11.5896294,3253.2,3253.1,0.63664223]
[1737592960079,11.5896294,3253.2,3253.1,1.00770845]
[1737592962229,11.5896294,3253.2,3253.1,35.75611655]
[1737592962615,11.5896294,3253.2,3253.1,0.75611655]
[1737592963128,7.03405346,3253.2,3253.1,0.75611655]